bitfinex/quotes_SOLUSD_20251214
["timestamp","ask_amount","ask_price","bid_price","bid_amount"]
[1765706166709,20.5919833,132.54,132.53,0.70000001]
[1765706173430,21.2819833,132.54,132.53,1e-08]
[1765706173606,20.5919833,132.54,132.53,1e-08]
[1765706176909,20.5919833,132.54,132.53,0.70000001]
[1765706178037,20.5919833,132.54,132.53,1e-08]
[1765706179238,7.5448921,132.54,132.53,0.70000001]
[1765706180341,7.5448921,132.54,132.53,1e-08]
[1765706184340,7.5448921,132.54,132.53,0.70000001]
[1765706195546,7.5448921,132.54,132.53,1e-08]
[1765706196032,7.5448921,132.54,132.53,0.68000001]
[1765706216466,8.2048921,132.54,132.53,1e-08]
[1765706216667,10.39251714,132.54,132.53,1e-08]
[1765706219877,11.62351508,132.54,132.53,1e-08]
[1765706221379,8.2048921,132.54,132.53,1e-08]
[1765706221752,11.62351508,132.54,132.53,1e-08]
[1765706223600,19.88351508,132.54,132.53,1e-08]
[1765706225676,22.90569029,132.54,132.53,1e-08]
[1765706232585,19.48706731,132.54,132.53,1e-08]
[1765706232785,22.90569029,132.54,132.53,1e-08]
[1765706233668,31.71563521,132.54,132.53,1e-08]
[1765706235691,23.45563521,132.54,132.53,1e-08]
[1765706235905,31.71563521,132.54,132.53,1e-08]
[1765706236697,23.45563521,132.54,132.53,1e-08]
[1765706237063,31.71563521,132.54,132.53,1e-08]
[1765706239294,23.45563521,132.54,132.53,1e-08]
[1765706239694,31.71563521,132.54,132.53,1e-08]
[1765706244702,28.29701223,132.54,132.53,1e-08]
[1765706245008,31.71563521,132.54,132.53,1e-08]
[1765706249300,31.71597663,132.54,132.53,1e-08]
[1765706249502,23.45597663,132.54,132.53,1e-08]
[1765706250008,31.71597663,132.54,132.53,1e-08]
[1765706250909,23.45597663,132.54,132.53,1e-08]
[1765706251110,31.71597663,132.54,132.53,1e-08]
[1765706253314,23.45597663,132.54,132.53,1e-08]
[1765706253622,31.71597663,132.54,132.53,1e-08]
[1765706254710,23.45597663,132.54,132.53,1e-08]
[1765706254911,31.71597663,132.54,132.53,1e-08]
[1765706256893,23.45597663,132.54,132.53,1e-08]
[1765706257216,31.71597663,132.54,132.53,1e-08]
[1765706258718,28.29701223,132.54,132.53,1e-08]
[1765706259012,31.71597663,132.54,132.53,1e-08]
[1765706273340,31.05597663,132.54,132.53,0.66000001]
[1765706275140,27.63701223,132.54,132.53,0.66000001]
[1765706275376,31.05597663,132.54,132.53,0.66000001]
[1765706277241,22.79597663,132.54,132.53,0.66000001]
[1765706277430,31.05597663,132.54,132.53,0.66000001]
[1765706278530,22.79597663,132.54,132.53,0.66000001]
[1765706278729,31.05597663,132.54,132.53,0.66000001]
[1765706281955,29.82525238,132.54,132.53,0.66000001]
[1765706282943,17.99313225,132.54,132.53,0.66000001]
[1765706283342,21.21553581,132.54,132.53,0.66000001]
[1765706284755,21.21542502,132.54,132.53,0.66000001]
[1765706285255,17.99302146,132.54,132.53,0.66000001]
[1765706288159,21.21542502,132.54,132.53,0.66000001]
[1765706289624,12.95542502,132.54,132.53,0.66000001]
[1765706293734,7.5448921,132.54,132.53,0.66000001]
[1765706293933,9.73302146,132.54,132.53,0.66000001]
[1765706306178,12.95542502,132.54,132.53,0.66000001]
[1765706307810,12.95542502,132.54,132.53,1e-08]
[1765706307996,22.47536994,132.54,132.53,1e-08]
[1765706308472,30.73536994,132.54,132.53,1e-08]
[1765706308671,22.47536994,132.54,132.53,1e-08]
[1765706308871,30.73536994,132.54,132.53,1e-08]
[1765706309083,22.47536994,132.54,132.53,1e-08]
[1765706309293,30.73536994,132.54,132.53,1e-08]
[1765706311291,21.85703612,132.51,132.5,0.1]
[1765706311492,32.30516548,132.51,132.5,0.1]
[1765706311794,32.96516548,132.51,132.5,0.1]
[1765706311978,43.53485457,132.51,132.5,0.1]
[1765706315702,43.53485457,132.51,132.5,1e-08]
[1765706316970,45.72298393,132.51,132.5,1e-08]
[1765706317191,43.53485457,132.51,132.5,1e-08]
[1765706320102,43.53645027,132.51,132.5,1e-08]
[1765706320902,41.34672521,132.51,132.5,1e-08]
[1765706321103,43.53645027,132.51,132.5,1e-08]
[1765706321277,9.46994492,132.5,132.49,1e-08]
[1765706321470,14.13371818,132.5,132.49,1e-08]
[1765706321972,17.1574926,132.5,132.49,1e-08]
[1765706322302,24.70466241,132.5,132.49,1e-08]
[1765706324282,24.99108432,132.49,132.48,1e-08]
[1765706324479,33.25108432,132.49,132.48,1e-08]
[1765706324680,20.20399312,132.49,132.48,1e-08]
[1765706325009,23.22799614,132.49,132.48,1e-08]
[1765706326304,30.77573559,132.49,132.48,1e-08]
[1765706327508,30.79573559,132.49,132.48,1e-08]
[1765706329305,22.51573559,132.49,132.48,1e-08]
[1765706329496,30.79573559,132.49,132.48,1e-08]
[1765706330107,22.51573559,132.49,132.48,1e-08]
[1765706330330,30.79573559,132.49,132.48,1e-08]
[1765706331014,22.51573559,132.49,132.48,1e-08]
[1765706331493,30.79573559,132.49,132.48,1e-08]
[1765706331702,22.51573559,132.49,132.48,1e-08]
[1765706332020,29.85141245,132.49,132.48,0.66000001]
[1765706332314,29.85141245,132.49,132.48,1e-08]
[1765706332490,30.51141245,132.49,132.48,1e-08]
[1765706343940,31.74429757,132.49,132.48,1e-08]
[1765706355252,31.80429757,132.49,132.48,1e-08]
[1765706356648,31.80433613,132.49,132.48,1e-08]
[1765706370670,28.78033311,132.49,132.48,1e-08]
[1765706376873,20.50033311,132.49,132.48,1e-08]
[1765706377079,28.78033311,132.49,132.48,1e-08]
[1765706377248,31.80410753,132.49,132.48,1e-08]
[1765706384183,32.08843067,132.49,132.48,1e-08]
[1765706386285,23.80843067,132.49,132.48,1e-08]
[1765706386454,32.08843067,132.49,132.48,1e-08]
[1765706390170,21.85703612,132.46,132.45,0.1]
[1765706390376,29.40648501,132.46,132.45,0.1]
[1765706390565,20.59654009,132.46,132.45,0.1]
[1765706392169,20.59654009,132.46,132.45,0.8]
[1765706397274,24.01931711,132.46,132.45,0.8]
[1765706398799,20.59654009,132.46,132.45,0.8]
[1765706402068,24.01931711,132.46,132.45,0.8]
[1765706403861,22.78702141,132.46,132.45,0.8]
[1765706407202,31.59696633,132.46,132.45,0.1]
[1765706421921,32.30696633,132.46,132.45,0.1]
[1765706425929,31.59696633,132.46,132.45,0.1]
[1765706426820,32.30696633,132.46,132.45,0.1]
[1765706427522,32.30737243,132.46,132.45,0.1]
[1765706428827,40.58737243,132.46,132.45,0.1]
[1765706429389,43.61183275,132.46,132.45,0.1]
[1765706431817,42.90183275,132.46,132.45,0.78]
[1765706432199,34.62183275,132.46,132.45,0.78]
[1765706432727,35.33183275,132.46,132.45,0.1]
[1765706433722,33.14094533,132.46,132.45,0.1]
[1765706433928,35.33183275,132.46,132.45,0.1]
[1765706434425,35.33183275,132.46,132.45,0.78]
[1765706434426,20.59654009,132.46,132.45,0.78]
[1765706434722,7.54944889,132.46,132.45,0.78]
[1765706435527,9.74033631,132.46,132.45,0.78]
[1765706436020,9.74033631,132.46,132.45,0.1]
[1765706436021,10.45033631,132.46,132.45,0.1]
[1765706437109,13.47433933,132.46,132.45,0.1]
[1765706440632,22.28428425,132.46,132.45,0.1]
[1765706440793,30.56428425,132.46,132.45,0.1]
[1765706444830,29.85428425,132.46,132.45,0.1]
[1765706445038,29.85428425,132.46,132.45,0.78]
[1765706445411,21.57428425,132.46,132.45,0.78]
[1765706445736,9.74033631,132.46,132.45,0.78]
[1765706446534,7.54944889,132.46,132.45,0.78]
[1765706446729,9.74033631,132.46,132.45,0.78]
[1765706448633,9.74033631,132.46,132.45,0.1]
[1765706448939,27.54028123,132.46,132.45,0.1]
[1765706449139,22.28474155,132.46,132.45,0.1]
[1765706449343,30.56474155,132.46,132.45,0.1]
[1765706460150,22.28474155,132.46,132.45,0.1]
[1765706460463,30.56474155,132.46,132.45,0.1]
[1765706462988,30.56535814,132.46,132.45,0.1]
[1765706465859,31.79804911,132.46,132.45,0.1]
[1765706466560,23.51804911,132.46,132.45,0.1]
[1765706466746,31.79804911,132.46,132.45,0.1]
[1765706468166,35.50656723,132.46,132.44,0.1]
[1765706468368,7.56838996,132.45,132.44,0.1]
[1765706468870,10.59307898,132.45,132.44,0.1]
[1765706469064,7.168884,132.45,132.44,0.1]
[1765706469368,6.448884,132.45,132.44,0.1]
[1765706470499,13.99890287,132.45,132.44,0.1]
[1765706473367,14.71890287,132.45,132.44,0.1]
[1765706478407,13.99890287,132.45,132.44,0.1]
[1765706482580,14.71890287,132.45,132.44,0.1]
[1765706498431,14.71906114,132.45,132.44,0.1]
[1765706506621,18.14341439,132.45,132.44,0.1]
[1765706511627,27.23768245,132.45,132.44,0.1]
[1765706511999,40.28477365,132.45,132.44,1e-08]
[1765706512426,48.56477365,132.45,132.44,1e-08]
[1765706523532,40.28477365,132.45,132.44,1e-08]
[1765706524034,48.56477365,132.45,132.44,1e-08]
[1765706525940,46.09995679,132.45,132.44,1e-08]
[1765706530613,43.18801197,132.45,132.44,0.70000001]
[1765706530879,25.81374391,132.45,132.44,0.70000001]
[1765706531378,23.62179909,132.45,132.44,0.70000001]
[1765706531560,25.81374391,132.45,132.44,0.70000001]
[1765706531960,23.62179909,132.45,132.44,0.70000001]
[1765706532157,25.81374391,132.45,132.44,0.70000001]
[1765706533169,23.62179909,132.45,132.44,0.70000001]
[1765706533376,25.81374391,132.45,132.44,0.70000001]
[1765706533571,25.8128172,132.45,132.44,0.70000001]
[1765706539106,23.62179909,132.45,132.44,0.70000001]
[1765706539404,25.8128172,132.45,132.44,0.70000001]
[1765706539597,23.62179909,132.45,132.44,0.70000001]
[1765706539802,22.78812818,132.45,132.44,0.70000001]
[1765706547798,32.2580731,132.45,132.44,1e-08]
[1765706548200,54.94152552,132.45,132.44,1e-08]
[1765706550414,54.28152552,132.45,132.44,0.71000001]
[1765706551017,31.5980731,132.45,132.44,1e-08]
[1765706551689,31.5980731,132.45,132.44,0.71000001]
[1765706553794,31.5980731,132.45,132.44,1e-08]
[1765706554308,32.2480731,132.45,132.44,1e-08]
[1765706555013,34.43909121,132.45,132.44,1e-08]
[1765706555518,37.46355153,132.45,132.44,1e-08]
[1765706560310,35.27253342,132.45,132.44,1e-08]
[1765706561496,32.2480731,132.45,132.44,1e-08]
[1765706561695,31.5980731,132.45,132.44,1e-08]
[1765706562515,31.5980731,132.45,132.44,0.71000001]
[1765706562720,22.78812818,132.45,132.44,0.71000001]
[1765706564701,22.78812818,132.45,132.44,1e-08]
[1765706566210,22.78812818,132.45,132.44,0.71000001]
[1765706566933,22.78812818,132.45,132.44,1e-08]
[1765706567106,22.78812818,132.45,132.44,0.71000001]
[1765706567433,22.78812818,132.45,132.44,1e-08]
[1765706569017,22.78812818,132.45,132.44,0.71000001]
[1765706569618,22.78827882,132.45,132.44,0.71000001]
[1765706575229,20.59711007,132.45,132.44,0.71000001]
[1765706575538,22.78827882,132.45,132.44,0.71000001]
[1765706577435,20.59711007,132.45,132.44,0.71000001]
[1765706581060,22.78827882,132.45,132.44,0.71000001]
[1765706581755,7.54964158,132.46,132.44,0.71000001]
[1765706582048,22.78790153,132.46,132.44,0.71000001]
[1765706583120,2.19116875,132.45,132.44,0.71000001]
[1765706583326,2.19116875,132.45,132.44,1e-08]
[1765706584335,9.74118762,132.45,132.44,1e-08]
[1765706584532,10.43118762,132.45,132.44,1e-08]
[1765706584732,9.74118762,132.45,132.44,1e-08]
[1765706588038,10.97365216,132.45,132.44,1e-08]
[1765706590154,11.66365216,132.45,132.44,1e-08]
[1765706591554,20.47359708,132.45,132.44,1e-08]
[1765706596755,23.89723037,132.45,132.44,1e-08]
[1765706597143,26.92191939,132.45,132.44,1e-08]
[1765706597863,35.20191939,132.45,132.44,1e-08]
[1765706599539,28.35465281,132.45,132.44,1e-08]
[1765706599741,35.20191939,132.45,132.44,1e-08]
[1765706605381,35.20402135,132.45,132.44,1e-08]
[1765706605546,26.92402135,132.45,132.44,1e-08]
[1765706605877,28.75464806,132.45,132.44,1e-08]
[1765706606074,19.25470314,132.45,132.44,0.72000001]
[1765706606277,10.97470314,132.45,132.44,0.72000001]
[1765706606680,10.97470314,132.45,132.44,1e-08]
[1765706610574,11.68470314,132.45,132.44,1e-08]
[1765706611370,10.97470314,132.45,132.44,1e-08]
[1765706612674,13.99893479,132.45,132.44,1e-08]
[1765706614983,14.70893479,132.45,132.44,1e-08]
[1765706616981,23.51887971,132.45,132.44,1e-08]
[1765706617363,19.38419544,132.45,132.44,1e-08]
[1765706617557,13.99893479,132.45,132.44,0.65000001]
[1765706618061,10.97470314,132.45,132.44,0.65000001]
[1765706630792,7.55001887,132.45,132.44,0.65000001]
[1765706635210,7.55001887,132.45,132.44,11.62639482]
[1765706635500,24.02138334,132.46,132.44,11.62639482]
[1765706635735,24.02138334,132.46,132.45,0.68]
[1765706637190,24.02138334,132.46,132.44,0.68000001]
[1765706638987,24.68138334,132.46,132.44,0.68000001]
[1765706640528,0.2,132.59,132.49,0.99999999]
[1765706640723,0.2,132.59,132.57,3.42468427]
[1765706640918,0.2,132.59,132.58,11.69437412]
[1765706641118,0.2,132.59,132.58,3.41437412]
[1765706641318,0.2,132.59,132.58,3.02057768]
[1765706641319,0.86,132.59,132.58,3.02057768]
[1765706642110,0.2,132.59,132.58,3.02057768]
[1765706643332,0.86,132.59,132.58,3.02057768]
[1765706644925,13.0470912,132.55,132.49,0.68]
[1765706645126,13.0470912,132.55,132.51,8.28]
[1765706645327,10.95926622,132.54,132.51,8.28]
[1765706645506,11.61926622,132.54,132.51,8.96]
[1765706645707,4.07437412,132.53,132.51,8.28]
[1765706645905,3.41437412,132.52,132.5,8.28]
[1765706646108,4.07437412,132.52,132.5,8.28]
[1765706647939,0.66,132.52,132.5,8.28]
[1765706648241,4.07437412,132.52,132.5,8.28]
[1765706650041,2.84848927,132.52,132.5,8.28]
[1765706650757,0.66,132.52,132.5,8.28]
[1765706651229,8.20604198,132.52,132.5,8.28]
[1765706654748,10.39453125,132.52,132.5,8.28]
[1765706659854,11.65843419,132.51,132.48,17.18828052]
[1765706660020,2.18848927,132.49,132.46,0.68]
[1765706660541,2.84848927,132.49,132.46,0.68]
[1765706660742,25.52336928,132.49,132.46,0.68]
[1765706661960,33.07112673,132.49,132.46,0.68]
[1765706662335,32.41112673,132.49,132.46,0.68]
[1765706662858,30.22263746,132.49,132.46,0.68]
[1765706663273,30.88263746,132.49,132.46,0.68]
[1765706666950,30.94263746,132.49,132.46,0.68]
[1765706667270,33.13112673,132.49,132.46,0.68]
[1765706667963,0.67,132.48,132.46,0.68]
[1765706668462,30.89263746,132.49,132.46,0.68]
[1765706669654,11.66843419,132.48,132.45,8.26]
[1765706669850,2.18848927,132.46,132.45,8.26]
[1765706670672,2.85848927,132.46,132.45,8.26]
[1765706670870,0.67,132.46,132.45,8.26]
[1765706671055,18.66740571,132.47,132.45,8.26]
[1765706673371,10.40740571,132.47,132.45,8.26]
[1765706673546,2.85848927,132.46,132.45,8.26]
[1765706673876,2.85848927,132.46,132.44,1e-08]
[1765706674550,10.4083706,132.46,132.44,1e-08]
[1765706674778,9.7383706,132.46,132.44,1e-08]
[1765706675077,0.67,132.45,132.44,1e-08]
[1765706675381,2.85848927,132.45,132.44,1e-08]
[1765706676784,10.40850814,132.45,132.44,1e-08]
[1765706677985,10.41095661,132.45,132.44,1e-08]
[1765706678581,18.87315299,132.47,132.44,1e-08]
[1765706678582,8.21963372,132.46,132.44,1e-08]
[1765706678778,10.41057146,132.46,132.44,1e-08]
[1765706679171,10.41057146,132.46,132.44,0.70000001]
[1765706679579,10.40991844,132.47,132.44,0.70000001]
[1765706679778,9.73991844,132.47,132.44,0.70000001]
[1765706681285,7.5489807,132.47,132.44,0.70000001]
[1765706681467,9.73991844,132.47,132.44,0.70000001]
[1765706681784,10.40991844,132.47,132.44,0.70000001]
[1765706682091,8.2189807,132.47,132.44,0.70000001]
[1765706687089,10.40991844,132.47,132.44,0.70000001]
[1765706690664,31.91661003,132.49,132.44,10.44137672]
[1765706690665,34.77754777,132.49,132.44,10.44137672]
[1765706690985,0.67,132.48,132.44,10.44137672]
[1765706691189,0.67,132.48,132.45,0.7]
[1765706692329,8.21830917,132.48,132.45,0.7]
[1765706695917,7.54830917,132.48,132.45,0.7]
[1765706696119,8.20830917,132.48,132.45,0.7]
[1765706696909,0.66,132.47,132.45,0.7]
[1765706699924,7.54944889,132.46,132.45,0.7]
[1765706701496,8.20944889,132.46,132.44,1e-08]
[1765706701800,8.20944889,132.46,132.44,0.68000001]
[1765706702014,7.54944889,132.46,132.44,0.68000001]
[1765706707904,26.41908211,132.48,132.44,0.68000001]
[1765706708105,0.66,132.47,132.44,0.68000001]
[1765706709897,7.54944889,132.46,132.44,0.68000001]
[1765706710303,8.20910005,132.47,132.44,0.68000001]
[1765706713034,7.5485396,132.48,132.44,4.10118432]
[1765706713343,8.2085396,132.48,132.44,4.10118432]
[1765706713634,8.2085396,132.48,132.45,0.68]
[1765706714433,8.2085396,132.48,132.46,8.28]
[1765706718119,8.2085396,132.48,132.46,8.96]
[1765706719644,7.5485396,132.48,132.46,8.96]
[1765706720146,8.2085396,132.48,132.46,8.96]
[1765706721544,13.0470912,132.49,132.46,8.28]
[1765706721545,20.59504722,132.49,132.46,8.28]
[1765706721750,21.25504722,132.49,132.47,0.68]
[1765706722149,21.25504722,132.49,132.46,8.96]
[1765706723245,8.20795602,132.49,132.46,8.96]
[1765706723446,7.54716981,132.5,132.47,0.68]
[1765706723747,8.20716981,132.5,132.47,4.10099702]
[1765706724544,8.20716981,132.5,132.48,0.68]
[1765706724730,8.20660025,132.51,132.48,0.68]
[1765706725249,0.66,132.5,132.47,4.10099702]
[1765706726045,8.20771816,132.5,132.47,4.10099702]
[1765706726850,8.20771816,132.5,132.47,3.42099702]
[1765706727035,8.20771816,132.5,132.48,0.67]
[1765706727550,8.20771816,132.5,132.47,4.09099702]
[1765706728846,7.54771816,132.5,132.48,0.67]
[1765706730547,8.24682178,132.51,132.48,4.09099702]
[1765706730855,8.24597957,132.53,132.49,11.70099702]
[1765706731029,8.24597957,132.53,132.49,12.37099702]
[1765706731234,8.24597957,132.53,132.5,0.67]
[1765706731743,0.7,132.55,132.51,3.42099702]
[1765706731935,8.24449581,132.55,132.52,8.28]
[1765706732135,7.54449581,132.55,132.53,0.67]
[1765706732652,8.24449581,132.55,132.53,0.67]
[1765706733227,7.54449581,132.55,132.53,0.67]
[1765706733428,20.59106183,132.56,132.53,0.67]
[1765706733749,8.24342424,132.57,132.53,11.63640103]
[1765706733927,7.54342424,132.57,132.54,3.42099702]
[1765706734127,7.54342424,132.57,132.55,8.26]
[1765706734347,7.54342424,132.57,132.55,8.93]
[1765706734857,8.24342424,132.57,132.55,8.93]
[1765706735053,7.54342424,132.57,132.55,8.93]
[1765706735353,7.54342424,132.57,132.55,12.35099702]
[1765706736851,7.54342424,132.57,132.55,8.93]
[1765706738567,0.7,132.57,132.55,8.93]
[1765706741866,0.7,132.57,132.55,12.35099702]
[1765706747276,7.54261577,132.58,132.55,12.35099702]
[1765706747453,8.24261577,132.58,132.55,12.35099702]
[1765706748971,8.24261577,132.58,132.55,12.34563338]
[1765706750375,8.24261577,132.58,132.56,0.67]
[1765706751064,8.24261577,132.58,132.55,12.34563338]
[1765706752476,8.24261577,132.58,132.56,0.67]
[1765706752663,7.74227587,132.59,132.57,3.41563338]
[1765706752980,8.44227587,132.59,132.57,3.41563338]
[1765706753151,8.44227587,132.59,132.57,4.08563338]
[1765706753978,8.44227587,132.59,132.57,3.41563338]
[1765706754273,8.44227587,132.59,132.57,4.08563338]
[1765706756258,8.44227587,132.59,132.58,8.26]
[1765706758058,7.74227587,132.59,132.58,12.38563338]
[1765706758367,7.74227587,132.59,132.58,11.67563338]
[1765706758677,0.2,132.59,132.58,12.38563338]
[1765706760673,0.2,132.59,132.58,19.92824915]
[1765706763567,0.2,132.59,132.58,20.21257229]
[1765706763767,0.2,132.59,132.58,23.23246583]
[1765706763970,0.2,132.59,132.58,35.45804413]
[1765706768775,0.2,132.6,132.58,48.50513533]
[1765706769112,0.2,132.6,132.59,16.63553482]
[1765706769390,0.2,132.63,132.62,22.14135926]
[1765706769591,0.2,132.63,132.62,21.3070912]
[1765706769766,0.2,132.63,132.62,25.43272458]
[1765706770303,0.2,132.63,132.62,28.45170642]
[1765706770784,0.2,132.63,132.62,35.99204724]
[1765706771394,0.2,132.63,132.62,32.57641386]
[1765706771593,0.2,132.63,132.62,35.99204724]
[1765706771993,0.2,132.63,132.62,34.75983826]
[1765706774370,0.91,132.63,132.62,8.26]
[1765706777714,8.44977229,132.63,132.62,8.26]
[1765706778615,0.91,132.63,132.62,8.26]
[1765706780305,8.44977229,132.63,132.62,8.26]
[1765706780476,0.91,132.63,132.62,8.26]
[1765706786813,0.2,132.63,132.62,8.26]
[1765706787274,0.89,132.63,132.62,8.26]
[1765706788013,0.89,132.63,132.62,10.44407479]
[1765706788485,0.89,132.63,132.62,8.26]
[1765706789403,0.89,132.63,132.62,15.80034082]
[1765706789585,0.2,132.63,132.62,18.66441561]
[1765706789780,0.2,132.63,132.62,16.48034082]
[1765706789998,0.2,132.63,132.62,18.68441561]
[1765706792014,0.2,132.63,132.62,26.22210871]
[1765706792614,0.2,132.63,132.62,26.50643185]
[1765706792822,0.2,132.65,132.64,13.33141434]
[1765706793112,0.2,132.65,132.64,23.77548913]
[1765706793327,0.2,132.65,132.64,24.47548913]
[1765706793495,0.2,132.65,132.64,34.74866828]
[1765706794316,0.2,132.65,132.64,31.73036985]
[1765706797192,0.2,132.65,132.64,32.01469299]
[1765706797396,0.2,132.65,132.64,34.19876778]
[1765706797812,0.2,132.65,132.64,37.21683847]
[1765706798011,0.2,132.65,132.64,98.41683847]
[1765706799414,0.2,132.65,132.64,96.23276368]
[1765706804009,0.2,132.65,132.64,90.04629506]
[1765706806798,0.2,132.65,132.64,92.23036985]
[1765706808125,0.2,132.65,132.64,92.93036985]
[1765706809814,0.2,132.65,132.64,31.73036985]
[1765706811037,0.2,132.65,132.64,31.03036985]
[1765706812422,0.2,132.65,132.64,31.73036985]
[1765706815630,0.2,132.65,132.64,31.03036985]
[1765706815834,0.91,132.65,132.64,15.79920386]
[1765706816722,0.2,132.65,132.64,15.79920386]
[1765706820561,0.91,132.65,132.64,8.26]
[1765706820737,0.91,132.65,132.63,8.26]
[1765706820942,0.71,132.64,132.63,8.26]
[1765706836464,0.2,132.65,132.63,19.87155146]
[1765706836664,0.2,132.65,132.64,4.07177917]
[1765706838271,0.2,132.65,132.64,11.61098303]
[1765706841365,0.2,132.65,132.64,11.89530617]
[1765706844453,0.2,132.65,132.64,8.483527]
[1765706844658,0.2,132.65,132.64,11.89530617]
[1765706845578,0.2,132.65,132.64,73.09530617]
[1765706845951,0.2,132.65,132.64,20.70525109]
[1765706846279,0.2,132.65,132.64,23.72332178]
[1765706851049,0.2,132.65,132.64,84.92332178]
[1765706855088,0.2,132.65,132.64,84.92146144]
[1765706855382,0.2,132.65,132.64,84.77929987]
[1765706856585,0.87,132.65,132.64,13.96719338]
[1765706861487,0.87,132.65,132.64,7.53920386]
[1765706862392,0.87,132.65,132.64,10.94912269]
[1765706864195,0.87,132.65,132.64,7.53920386]
[1765706864589,0.87,132.65,132.63,15.79952529]
[1765706864896,0.67,132.64,132.63,15.79952529]
[1765706865386,0.67,132.64,132.63,19.20944412]
[1765706865760,0.67,132.64,132.63,26.74698494]
[1765706867797,0.87,132.65,132.63,26.74698494]
[1765706875399,0.87,132.65,132.64,3.40991883]
[1765706875887,0.2,132.65,132.64,3.40991883]
[1765706876586,0.2,132.65,132.64,6.42844503]
[1765706878199,0.2,132.65,132.64,13.96764889]
[1765706879816,0.9,132.65,132.64,13.96764889]
[1765706880806,0.2,132.65,132.64,10.94912269]
[1765706881301,0.9,132.65,132.64,7.53920386]
[1765706881680,0.9,132.65,132.63,8.26]
[1765706881879,0.7,132.64,132.63,8.26]
[1765706884707,7.43876069,132.65,132.63,8.26]
[1765706885279,7.53806723,132.66,132.63,8.26]
[1765706886791,0.7,132.65,132.63,8.26]
[1765706888688,7.23806723,132.66,132.63,8.26]
[1765706890709,0.7,132.65,132.63,8.26]
[1765706890915,3.41173129,132.64,132.63,8.26]
[1765706891292,4.11173129,132.64,132.63,8.26]
[1765706891913,11.65093515,132.64,132.63,8.26]
[1765706892213,11.15093515,132.64,132.63,8.26]
[1765706893607,11.15093515,132.64,132.59,11.67358486]
[1765706893813,0.7,132.63,132.61,8.26]
[1765706894009,8.23991876,132.63,132.61,8.26]
[1765706894499,0.7,132.62,132.61,8.26]
[1765706898706,8.23991876,132.63,132.61,8.26]
[1765706898906,8.23991876,132.63,132.61,10.44435861]
[1765706899106,8.23991876,132.63,132.61,8.26]
[1765706900021,8.23991876,132.63,132.61,8.98]
[1765706900221,8.23991876,132.63,132.61,11.16435861]
[1765706901034,8.23991876,132.63,132.61,8.98]
[1765706901628,0.7,132.63,132.61,8.98]
[1765706902128,7.53959806,132.64,132.62,0.72]
[1765706902347,8.23959806,132.64,132.61,16.52088269]
[1765706902835,0.7,132.63,132.61,8.98]
[1765706905036,0.7,132.63,132.61,16.52089887]
[1765706905342,0.7,132.63,132.61,8.98]
[1765706908422,0.71,132.64,132.61,8.98]
[1765706908622,9.72299411,132.65,132.61,8.98]
[1765706908930,0.71,132.63,132.61,8.98]
[1765706917757,8.25940118,132.64,132.61,8.92]
[1765706918324,0.72,132.63,132.61,8.92]
[1765706919052,8.25940118,132.64,132.61,8.92]
[1765706919650,0.72,132.63,132.61,8.92]
[1765706921263,0.72,132.63,132.61,16.4608874]
[1765706922257,7.53940118,132.64,132.61,16.4608874]
[1765706922634,0.72,132.63,132.61,16.4608874]
[1765706924065,0.72,132.64,132.61,16.4608874]
[1765706925368,7.5386355,132.65,132.61,15.8008874]
[1765706925536,0.72,132.64,132.62,0.66]
[1765706925736,0.72,132.64,132.63,8.26]
[1765706932559,7.53831597,132.66,132.63,8.26]
[1765706932867,0.72,132.65,132.63,8.26]
[1765706941878,2.9041266,132.65,132.63,8.26]
[1765706943461,2.8741266,132.64,132.63,8.26]
[1765706944465,0.69,132.64,132.63,8.26]
[1765706944663,10.41323757,132.65,132.63,8.26]
[1765706946156,10.41323757,132.65,132.63,8.98]
[1765706946765,8.22911097,132.65,132.63,8.98]
[1765706947771,7.53911097,132.65,132.63,8.26]